bitfinex/quotes_SOLUSD_20240625
["timestamp","ask_amount","ask_price","bid_price","bid_amount"]
[1719345499009,1.43502399,138.99,138.94,6.95]
[1719345499204,1.43502399,138.99,138.95,6.95]
[1719345500502,6.433,139.0,138.96,6.95]
[1719345500701,6.433,139.0,138.97,6.95]
[1719345501298,6.433,139.0,138.98,6.95]
[1719345501699,6.95,139.03,138.99,6.95]
[1719345501700,7.78832399,139.03,138.99,6.95]
[1719345501903,7.78832399,139.03,139.0,6.95]
[1719345503319,7.78832399,139.03,138.98,6.95]
[1719345505324,7.78832399,139.03,138.99,6.95]
[1719345505501,7.78832399,139.03,139.0,6.95]
[1719345506209,7.78832399,139.03,138.99,6.95]
[1719345507027,7.78832399,139.03,138.97,0.34]
[1719345507230,7.78832399,139.03,138.99,6.95]
[1719345507835,7.78832399,139.03,138.98,6.95]
[1719345508417,7.78832399,139.03,138.99,6.95]
[1719345510125,7.78832399,139.03,139.0,6.95]
[1719345510999,7.78832399,139.03,138.98,0.17]
[1719345511199,7.78832399,139.03,138.97,0.17]
[1719345511425,7.78832399,139.03,138.98,6.95]
[1719345511726,7.78832399,139.03,138.97,0.17]
[1719345511903,7.78832399,139.03,138.99,6.95]
[1719345513626,7.78832399,139.03,138.98,6.95]
[1719345514140,7.78832399,139.03,138.99,6.95]
[1719345514318,7.78832399,139.03,138.98,6.95]
[1719345515427,7.78832399,139.03,138.99,6.95]
[1719345516704,6.95,139.02,138.92,20.0]
[1719345516934,1.43502399,139.01,138.97,6.95]
[1719345517099,1.43502399,139.01,138.96,6.95]
[1719345517731,1.43502399,139.01,138.97,6.95]
[1719345517912,1.43502399,139.01,138.95,0.34]
[1719345518119,1.43502399,139.01,138.97,6.95]
[1719345518509,1.43502399,139.02,138.97,6.95]
[1719345519211,1.43502399,139.02,138.99,6.95]
[1719345519411,7.78832399,139.03,139.01,6.95]
[1719345520547,7.78832399,139.03,139.0,6.95]
[1719345520922,7.78832399,139.03,138.95,28.14]
[1719345521118,7.78832399,139.03,139.0,6.95]
[1719345521636,7.78832399,139.03,139.01,6.95]
[1719345522736,7.78832399,139.03,138.95,28.14]
[1719345522737,6.3533,139.03,139.02,6.95]
[1719345524125,15.4584,139.04,139.02,6.95]
[1719345524322,16.89342399,139.04,139.03,6.95]
[1719345525433,16.89342399,139.04,138.95,28.14]
[1719345525642,16.89342399,139.04,139.0,6.95]
[1719345527642,16.89342399,139.04,138.99,6.95]
[1719345527849,16.89342399,139.04,139.0,6.95]
[1719345529341,16.89342399,139.04,138.99,6.95]
[1719345530177,16.89342399,139.04,138.95,27.8]
[1719345530466,23.84342399,139.04,138.99,6.95]
[1719345532541,16.89342399,139.04,138.99,6.95]
[1719345533776,16.89342399,139.04,139.02,6.95]
[1719345534191,7.1903,139.08,139.02,6.95]
[1719345534192,1.43502399,139.06,139.03,6.95]
[1719345534357,1.43502399,139.07,139.05,6.95]
[1719345534554,1.43502399,139.07,139.06,6.95]
[1719345534877,17.83612399,139.08,139.06,6.95]
[1719345535076,17.83612399,139.08,139.07,6.95]
[1719345535077,16.4011,139.08,139.07,6.95]
[1719345535455,6.385,139.09,139.03,1.02295479]
[1719345535775,6.385,139.09,139.08,6.95]
[1719345536764,6.385,139.09,139.04,0.34]
[1719345537071,6.385,139.09,139.04,1.36280781]
[1719345537275,6.385,139.09,139.04,0.34]
[1719345537467,6.385,139.09,139.04,1.36379598]
[1719345539977,1.43502399,139.1,139.04,1.36379598]
[1719345540691,1.43502399,139.1,139.04,0.34]
[1719345540858,1.43502399,139.1,139.04,1.36372234]
[1719345541263,1.43502399,139.1,139.04,1.02372234]
[1719345541577,6.1248,139.09,139.0,20.87]
[1719345541772,1.43502399,139.08,139.03,0.17]
[1719345541968,1.43502399,139.08,139.02,1.19389398]
[1719345542282,1.43502399,139.08,139.02,0.17]
[1719345542787,1.43502399,139.08,139.01,1.02496459]
[1719345543285,15.4252,139.11,139.04,20.87]
[1719345543462,6.1248,139.13,139.07,20.87]
[1719345543662,1.43502399,139.12,139.08,1.19458636]
[1719345544073,1.43502399,139.12,139.04,1.02538403]
[1719345544257,1.43502399,139.12,139.05,0.17]
[1719345544462,1.43502399,139.12,139.05,1.19531028]
[1719345544663,1.43502399,139.12,139.06,0.17]
[1719345545293,1.43502399,139.12,139.05,0.17]
[1719345545495,1.43502399,139.12,139.0,20.87]
[1719345545496,16.32,139.11,139.0,20.87]
[1719345545803,1.43502399,139.1,139.01,20.17]
[1719345546389,6.3335,139.09,139.01,20.17]
[1719345546603,1.43502399,139.08,139.01,0.17]
[1719345547371,15.1542,139.07,138.96,5.66777489]
[1719345547575,1.43502399,139.06,138.97,40.87]
[1719345547977,1.43502399,139.06,138.97,20.87]
[1719345548277,16.58922399,139.07,138.97,20.87]
[1719345548495,16.58922399,139.07,139.0,20.87]
[1719345548794,16.58922399,139.07,139.01,0.17]
[1719345549107,15.1542,139.07,139.01,0.34]
[1719345549473,7.76852399,139.09,139.01,0.34]
[1719345549678,6.3335,139.09,139.01,20.34]
[1719345549984,7.76852399,139.09,139.01,20.34]
[1719345550287,7.76852399,139.09,139.01,0.17]
[1719345550500,7.76852399,139.09,139.0,20.17]
[1719345551300,7.76852399,139.09,139.0,0.17]
[1719345551603,6.0567,139.07,139.0,0.17]
[1719345551803,1.43502399,139.06,139.0,0.17]
[1719345553280,15.9184,139.05,138.97,20.0]
[1719345553480,15.9184,139.05,138.97,0.94940609]
[1719345553481,6.3303,139.03,138.97,0.94940609]
[1719345553705,1.43502399,139.02,138.97,0.94940609]
[1719345553878,1.43502399,139.02,138.94,41.81940609]
[1719345555478,1.43502399,139.02,138.94,0.94940609]
[1719345555479,16.633,139.01,138.94,0.94940609]
[1719345555697,1.43502399,139.0,138.94,0.94940609]
[1719345556078,1.43502399,139.0,138.95,0.17]
[1719345556507,1.43502399,139.0,138.94,0.94940609]
[1719345556805,1.43502399,139.0,138.93,0.94940609]
[1719345557416,6.6451,138.99,138.9,259.7]
[1719345557620,1.43502399,138.98,138.89,20.87]
[1719345557898,15.2983,138.97,138.9,20.0]
[1719345558078,1.43502399,138.96,138.88,20.87]
[1719345558280,1.43502399,138.96,138.86,16.633]
[1719345558281,6.1888,138.95,138.86,16.633]
[1719345558504,1.43502399,138.94,138.83,20.87]
[1719345558712,1.43502399,138.94,138.84,20.0]
[1719345560306,1.43502399,138.94,138.86,20.87]
[1719345560485,1.43502399,138.94,138.87,0.17]
[1719345560676,1.43502399,138.94,138.87,0.34]
[1719345560874,16.5685,138.93,138.83,20.87]
[1719345561094,16.5685,138.93,138.84,0.17]
[1719345561095,1.43502399,138.92,138.84,0.17]
[1719345561298,1.43502399,138.92,138.83,20.87]
[1719345561500,6.2836,138.91,138.83,20.87]
[1719345561702,1.43502399,138.9,138.8,20.87]
[1719345562018,1.43502399,138.9,138.81,20.0]
[1719345562706,1.43502399,138.9,138.82,0.34]
[1719345563005,1.43502399,138.9,138.74,6.69685988]
[1719345563006,7.201,138.87,138.74,6.69685988]
[1719345563208,1.43502399,138.86,138.75,20.0]
[1719345563505,1.43502399,138.86,138.75,20.87]
[1719345563702,1.43502399,138.86,138.76,20.87]
[1719345563948,6.6614,138.88,138.79,20.87]
[1719345564094,6.6614,138.88,138.82,20.87]
[1719345565102,8.09642399,138.88,138.83,1.22147349]
[1719345565409,8.09642399,138.88,138.84,0.17]
[1719345566116,8.09642399,138.88,138.83,1.05263399]
[1719345566893,8.09642399,138.88,138.84,0.17]
[1719345567286,8.09642399,138.88,138.77,0.88479078]
[1719345567615,8.09642399,138.88,138.78,20.87]
[1719345567814,8.09642399,138.88,138.79,20.88466327]
[1719345568029,8.09642399,138.88,138.8,0.92214855]
[1719345568815,8.09642399,138.88,138.81,0.34]
[1719345569519,8.09642399,138.88,138.81,21.21]
[1719345569733,6.6614,138.88,138.84,20.87]
[1719345569902,16.0851,138.89,138.84,20.87]
[1719345569903,16.0851,138.89,138.85,21.26181647]
[1719345570100,6.0969,138.92,138.87,20.87]
[1719345570317,6.0969,138.92,138.88,1.26244374]
[1719345570494,6.0969,138.92,138.88,21.26244374]
[1719345571997,6.0969,138.92,138.89,0.923614]
[1719345572199,6.0969,138.92,138.88,0.17]
[1719345572502,1.43502399,138.91,138.83,20.87]
[1719345572705,7.53192399,138.92,138.84,0.34]
[1719345574217,7.53192399,138.92,138.84,20.34]
[1719345575233,16.4335,138.91,138.84,0.34]
[1719345575422,1.43502399,138.9,138.83,20.87]
[1719345575626,17.86852399,138.91,138.86,20.87]
[1719345575812,17.86852399,138.91,138.79,6.9505]
[1719345576009,17.86852399,138.91,138.82,20.87]
[1719345576204,16.4335,138.91,138.85,20.87]
[1719345576404,17.86852399,138.91,138.85,20.87]
[1719345576611,16.4335,138.91,138.86,0.34]
[1719345576921,16.4335,138.91,138.86,20.34]
[1719345584337,6.0969,138.92,138.88,20.87]
[1719345584513,6.0969,138.92,138.89,0.34]
[1719345585225,16.25,138.94,138.89,20.34]
[1719345586318,1.43502399,138.93,138.86,20.87]
[1719345586629,16.25,138.94,138.87,20.0]
[1719345587420,16.25,138.94,138.89,20.87]
[1719345587750,6.6548,138.95,138.9,20.34]
[1719345587910,16.3502,138.98,138.92,20.87]
[1719345588109,16.3502,138.98,138.93,20.34]
[1719345588504,6.1582,138.99,138.95,20.87]
[1719345588705,6.1582,138.99,138.96,0.34]
[1719345589827,6.1582,138.99,138.96,20.34]
[1719345590017,16.3502,139.01,138.96,20.34]
[1719345591028,1.43502399,139.0,138.92,20.87]
[1719345591223,16.3502,139.01,138.93,20.17]
[1719345591416,1.43502399,139.0,138.93,20.17]
[1719345592136,1.43502399,139.0,138.94,0.17]
[1719345594238,1.43502399,139.0,138.93,0.17]
[1719345594611,1.43502399,139.0,138.88,20.87]
[1719345594841,6.0588,138.99,138.89,20.0]
[1719345595025,1.43502399,138.98,138.89,20.0]
[1719345595429,15.6195,138.97,138.89,20.0]
[1719345595755,1.43502399,138.96,138.88,20.87]
[1719345596250,6.0618,138.95,138.82,16.4335]
[1719345596414,1.43502399,138.94,138.86,20.87]
[1719345596731,7.49682399,138.95,138.86,20.87]
[1719345597246,7.49682399,138.95,138.82,16.4335]
[1719345597417,7.49682399,138.95,138.85,20.87]
[1719345597752,1.43502399,138.94,138.86,0.34]
[1719345598123,1.43502399,138.94,138.86,20.34]
[1719345598323,6.0618,138.95,138.88,20.87]
[1719345598638,6.0618,138.95,138.89,20.34]
[1719345599924,1.43502399,138.94,138.89,0.34]
[1719345600125,1.43502399,138.94,138.82,16.4335]
[1719345600446,16.5705,138.93,138.88,20.87]
[1719345600668,6.0618,138.95,138.89,20.0]
[1719345600820,6.0618,138.95,138.91,20.87]
[1719345601021,6.0618,138.95,138.92,20.0]
[1719345601545,6.0618,138.95,138.93,0.34]
[1719345601961,16.5705,138.97,138.93,0.34]
[1719345602543,13.90896813,139.0,138.94,20.87]
[1719345602720,13.90896813,139.0,138.97,20.87]
[1719345602721,7.52016813,139.0,138.97,20.87]
[1719345602938,6.0416,139.04,138.98,20.34]
[1719345603460,6.0416,139.04,138.98,0.34]
[1719345603624,6.0416,139.04,138.96,20.87]
[1719345603625,7.47662399,139.04,138.99,0.17]
[1719345603825,7.47662399,139.04,138.97,20.34]
[1719345604050,6.0416,139.04,138.99,20.87]
[1719345604352,6.0416,139.04,139.0,0.34]
[1719345604534,6.0416,139.04,139.0,0.17]
[1719345605246,6.0416,139.04,138.99,0.34]
[1719345605644,7.47662399,139.04,138.99,0.34]
[1719345607149,7.47662399,139.04,138.93,0.79285024]
[1719345607331,7.47662399,139.04,138.94,0.17]
[1719345608645,7.47662399,139.04,138.97,0.17]
[1719345609653,15.6109,139.03,138.89,20.0]
[1719345609852,14.66922399,139.04,138.89,20.0]
[1719345609853,6.4574,139.01,138.89,20.0]
[1719345610042,37.04592399,139.0,138.88,24.37]
[1719345610937,17.04592399,139.0,138.88,24.37]
[1719345611246,17.04592399,139.0,138.85,259.7]
[1719345611247,6.3577,138.99,138.85,259.7]
[1719345611452,21.43502399,138.98,138.84,404.17]
[1719345611748,21.43502399,138.98,138.85,0.99518139]
[1719345612254,1.43502399,138.98,138.85,0.99518139]
[1719345612729,1.43502399,138.98,138.86,0.34]
[1719345613063,1.43502399,138.98,138.86,1.33510984]
[1719345613366,6.3577,138.99,138.88,24.37]
[1719345613563,6.3577,138.99,138.89,21.33489489]
[1719345613736,6.3577,138.99,138.9,0.99482326]
[1719345613928,6.3577,138.99,138.91,0.34]
[1719345614129,1.43502399,138.98,138.91,1.33468008]
[1719345614535,1.43502399,138.98,138.82,386.9968]
[1719345614536,8.63042399,138.98,138.82,386.9968]
[1719345614752,16.662,138.97,138.82,7.1968]
[1719345614954,6.0789,138.95,138.82,28.8068]
[1719345615260,6.0789,138.95,138.82,77.87995828]
[1719345615433,6.0789,138.95,138.83,170.68315828]
[1719345615758,6.0789,138.95,138.86,24.37]
[1719345616137,6.0789,138.95,138.87,0.34]
[1719345616335,6.0789,138.95,138.87,20.34]
[1719345620169,16.662,138.97,138.87,41.95]
[1719345620350,16.662,138.97,138.87,85.18]
[1719345620553,16.662,138.97,138.9,24.37]
[1719345620864,16.662,138.97,138.91,20.34]
[1719345621069,6.3765,138.99,138.91,20.34]
[1719345622237,6.1853,139.02,138.94,24.37]
[1719345622439,6.1853,139.02,138.95,20.34]
[1719345624648,6.1853,139.02,138.96,1.08109715]
[1719345624843,6.1853,139.02,138.97,0.34]
[1719345626246,7.62032399,139.02,138.97,0.17]
[1719345626456,6.1853,139.02,138.97,0.17]
[1719345627034,6.1853,139.02,138.91,1.08109715]
[1719345628369,6.1853,139.02,138.92,0.17]
[1719345628567,6.1853,139.02,138.92,1.42094151]
[1719345628980,6.1853,139.02,138.93,21.61]
[1719345629180,6.1853,139.02,138.94,21.42078591]
[1719345629346,6.1853,139.02,138.94,43.03078591]
[1719345630251,6.1853,139.02,138.97,24.37]
[1719345630447,6.1853,139.02,138.98,21.42047485]
[1719345630762,16.1562,139.03,138.99,1.08043274]
[1719345631072,6.276,139.06,139.0,0.34]
[1719345631278,6.276,139.06,139.01,1.08027729]
[1719345631279,21.6317,139.06,139.01,1.08027729]
[1719345631574,21.6317,139.06,139.02,0.34]
[1719345631780,21.6317,139.06,139.02,1.42026767]
[1719345632687,21.6317,139.06,139.02,0.34]
[1719345637387,15.3557,139.06,139.02,0.34]
[1719345637556,6.2737,139.09,139.02,21.42015844]
[1719345639379,6.2737,139.09,139.03,20.0]
[1719345639562,6.2737,139.09,139.04,1.42035259]
[1719345642281,6.2737,139.09,139.04,1.08035259]
[1719345642771,7.70872399,139.09,139.04,1.08035259]
[1719345642981,7.70872399,139.09,138.99,1.08035259]
[1719345643662,7.70872399,139.09,139.0,0.17]
[1719345643862,7.70872399,139.09,138.99,1.08035259]
[1719345645871,7.70872399,139.09,139.0,0.34]
[1719345646083,7.70872399,139.09,139.0,1.42019716]
[1719345648385,6.70872399,139.09,139.0,1.42019716]
[1719345648771,6.70872399,139.09,139.02,20.87]
[1719345648968,6.70872399,139.09,139.03,1.41996407]
[1719345649968,5.2737,139.09,139.03,1.41996407]
[1719345650891,6.70872399,139.09,139.03,1.41996407]
[1719345652490,6.70872399,139.09,139.03,0.34]
[1719345652670,6.70872399,139.09,139.02,1.41988638]
[1719345654065,6.70872399,139.09,139.02,0.34]
[1719345654269,6.70872399,139.09,139.02,1.4370568]
[1719345655390,6.70872399,139.09,139.02,0.34]
[1719345655592,6.70872399,139.09,139.02,1.43697788]
[1719345660705,13.89862399,139.09,139.02,1.43697788]
[1719345661002,13.89862399,139.09,139.02,0.34]
[1719345661193,13.89862399,139.09,139.03,0.17]
[1719345661398,6.70872399,139.09,139.02,1.12570268]
[1719345661574,20.0,139.08,138.97,20.0]
[1719345661782,8.62592399,139.07,138.97,20.0]
[1719345662081,30.0,139.04,138.97,20.0]
[1719345662285,1.43502399,139.03,138.97,20.0]
[1719345662893,1.43502399,139.03,138.96,20.87]
[1719345664116,1.43502399,139.03,138.97,0.34]
[1719345666412,51.4456,139.04,138.97,0.34]
[1719345666413,51.4456,139.04,138.97,20.34]
[1719345667401,30.0,139.04,138.99,20.87]
[1719345667601,22.7379,139.07,139.0,20.34]
[1719345669906,21.935,139.1,139.02,20.87]
[1719345670108,1.43502399,139.09,139.03,0.34]
[1719345673005,1.43502399,139.09,139.0,20.0]
[1719345673312,21.43502399,139.09,139.01,0.34]
[1719345673714,21.43502399,139.09,139.01,0.17]
[1719345674915,21.43502399,139.09,139.02,0.17]
[1719345675118,1.43502399,139.09,139.02,0.17]
[1719345676406,7.1911,139.06,138.98,20.0]
[1719345676723,7.1911,139.06,138.97,6.9505]
[1719345676724,1.43502399,139.05,138.97,6.9505]
[1719345676898,16.6137,139.04,138.96,20.87]
[1719345677097,1.43502399,139.03,138.96,20.87]
[1719345677616,1.43502399,139.03,138.97,0.17]
[1719345677830,1.43502399,139.03,138.97,0.34]
[1719345678112,1.43502399,139.03,138.94,6.9505]
[1719345678319,1.43502399,139.03,138.95,20.0]
[1719345678498,1.43502399,139.03,138.94,20.0]
[1719345678833,7.1938,139.01,138.9,6.9505]
[1719345679007,1.43502399,139.0,138.91,1.43781631]
[1719345679195,1.43502399,139.0,138.9,6.9505]
[1719345679196,21.8823,138.99,138.89,20.87]
[1719345679394,1.43502399,138.98,138.86,27.8205]
[1719345679589,1.43502399,138.98,138.87,20.87]
[1719345680013,21.8823,138.99,138.9,20.87]
[1719345680518,21.8823,138.99,138.91,0.34]
[1719345681023,24.06512399,139.02,138.91,0.34]
[1719345681197,1.43502399,139.01,138.93,20.87]
[1719345681389,1.43502399,139.01,138.94,20.34]
[1719345681998,1.43502399,139.01,138.86,12.79365828]
[1719345682201,21.43502399,139.01,138.87,20.0]
[1719345682399,7.1948,138.99,138.87,40.87]
[1719345682713,21.43502399,138.98,138.87,20.87]
[1719345683623,21.43502399,138.98,138.88,0.17]
[1719345683922,21.43502399,138.98,138.88,0.34]
[1719345684622,1.43502399,138.98,138.88,0.34]
[1719345685314,21.7499,138.97,138.88,0.34]
[1719345685516,1.43502399,138.96,138.88,0.34]
[1719345687227,1.43502399,138.96,138.87,20.87]
[1719345687399,7.1969,138.95,138.84,20.87]
[1719345687600,21.43502399,138.94,138.81,1.0072]
[1719345687823,1.43502399,138.94,138.83,20.87]
[1719345688043,20.0,138.93,138.83,20.87]
[1719345688213,1.43502399,138.92,138.83,20.87]
[1719345688530,8.63192399,138.95,138.83,20.87]
[1719345688721,20.0,138.94,138.83,20.87]
[1719345688897,1.43502399,138.93,138.83,20.87]
[1719345689105,1.43502399,138.93,138.84,0.17]
[1719345689333,1.43502399,138.93,138.84,0.34]
[1719345689640,29.5465,138.92,138.81,20.0]
[1719345689813,1.43502399,138.91,138.81,20.0]
[1719345690721,1.43502399,138.91,138.82,0.17]
[1719345690922,1.43502399,138.91,138.82,0.34]
[1719345691141,1.43502399,138.91,138.82,20.34]
[1719345691319,1.43502399,138.91,138.82,20.0]
[1719345691512,8.63412399,138.91,138.81,20.87]
[1719345691715,1.43502399,138.91,138.78,20.87]
[1719345691910,6.0913,138.87,138.78,20.87]
[1719345692123,1.43502399,138.86,138.74,260.5537016]
[1719345692316,1.43502399,138.86,138.75,20.87]
[1719345694046,1.43502399,138.86,138.76,0.17]
[1719345694204,1.43502399,138.86,138.76,19.67]
[1719345694403,1.43502399,138.86,138.77,0.17]
[1719345694841,1.43502399,138.86,138.78,20.87]
[1719345695628,1.43502399,138.86,138.76,40.54]
[1719345696848,6.0913,138.87,138.79,20.87]
[1719345696849,7.52632399,138.87,138.79,20.87]
[1719345697035,7.52632399,138.87,138.8,0.34]
[1719345700453,14.72732399,138.87,138.76,40.54]
[1719345700659,14.72732399,138.87,138.77,0.17]
[1719345700860,7.2016,138.86,138.77,0.17]
[1719345701155,1.43502399,138.85,138.77,0.17]
[1719345701956,1.43502399,138.85,138.77,0.34]
[1719345702962,16.4498,138.84,138.77,0.34]
[1719345703259,1.43502399,138.83,138.77,0.34]
[1719345703763,1.43502399,138.83,138.77,0.17]
[1719345704841,6.3682,138.82,138.77,0.17]
[1719345705035,1.43502399,138.81,138.77,0.17]
[1719345705230,1.43502399,138.81,138.74,0.8537016]
[1719345707068,1.43502399,138.81,138.75,0.17]
[1719345709152,1.43502399,138.81,138.75,0.34]
[1719345709359,1.43502399,138.81,138.75,1.83721772]
[1719345711144,1.43502399,138.81,138.75,0.34]
[1719345712949,1.43502399,138.81,138.75,1.83793691]
[1719345718269,1.43502399,138.81,138.75,0.34]
[1719345718990,15.1483,138.8,138.74,0.8537016]
[1719345719278,1.43502399,138.79,138.74,0.8537016]
[1719345720863,6.469,138.78,138.74,0.8537016]
[1719345721070,1.43502399,138.77,138.74,0.8537016]
[1719345721464,1.43502399,138.77,138.67,15.1483]
[1719345721465,16.0691,138.76,138.67,15.1483]
[1719345721667,16.0691,138.76,138.66,20.87]
[1719345721668,1.43502399,138.75,138.66,20.87]
[1719345724271,1.43502399,138.75,138.67,0.34]
[1719345727690,6.4172,138.74,138.67,0.34]
[1719345727868,1.43502399,138.73,138.67,0.34]
[1719345728064,7.85222399,138.74,138.67,0.34]
[1719345728678,1.43502399,138.73,138.67,1.83875193]
[1719345729068,7.85222399,138.74,138.67,1.83875193]
[1719345729269,1.43502399,138.73,138.67,1.83875193]
[1719345730699,6.4172,138.74,138.67,1.83875193]
[1719345730878,6.4172,138.74,138.67,21.83875193]
[1719345731694,1.43502399,138.73,138.67,21.83875193]
[1719345732401,1.43502399,138.73,138.68,2.68831748]
[1719345732598,1.43502399,138.73,138.69,0.17]
[1719345732781,16.0592,138.72,138.67,2.69012921]
[1719345733100,16.0592,138.72,138.62,379.8]
[1719345733101,1.43502399,138.71,138.63,23.56012921]
[1719345733600,1.43502399,138.71,138.63,2.69012921]
[1719345733894,1.43502399,138.71,138.62,20.87]
[1719345734101,6.2576,138.7,138.63,2.69069831]
[1719345734395,1.43502399,138.69,138.63,2.69069831]
[1719345734595,1.43502399,138.69,138.63,22.69069831]
[1719345735298,7.69262399,138.7,138.63,22.69069831]
[1719345735892,7.69262399,138.7,138.64,0.17]
[1719345736103,7.69262399,138.7,138.64,0.34]
[1719345736289,6.2576,138.7,138.64,0.34]
[1719345736622,6.4195,138.74,138.68,20.87]
[1719345736902,6.4195,138.74,138.69,23.02953426]
[1719345737680,6.4195,138.74,138.69,3.02953426]
[1719345737879,6.4195,138.74,138.69,4.4666218]
[1719345738082,1.43502399,138.73,138.69,4.4666218]
[1719345738499,1.43502399,138.73,138.69,0.34]
[1719345739009,1.43502399,138.73,138.68,30.34]
[1719345739482,1.43502399,138.73,138.69,4.12634009]
[1719345740002,7.85452399,138.74,138.69,34.12634009]
[1719345740308,6.4195,138.74,138.7,0.34]
[1719345740489,6.4195,138.74,138.7,20.34]
[1719345740693,6.4195,138.74,138.71,4.12574513]
[1719345740885,16.0112,138.76,138.72,0.34]
[1719345741088,16.0112,138.76,138.72,4.46515034]
[1719345741883,1.43502399,138.75,138.72,4.46515034]
[1719345742088,6.3593,138.74,138.62,7.8042]
[1719345742300,1.43502399,138.73,138.65,50.87]
[1719345743503,1.43502399,138.73,138.66,20.0]
[1719345744511,1.43502399,138.73,138.67,0.17]
[1719345745283,1.43502399,138.73,138.67,0.34]
[1719345746211,15.4443,138.72,138.65,20.0]
[1719345746508,15.4443,138.72,138.64,20.87]
[1719345746691,15.4443,138.72,138.65,20.0]
[1719345747617,15.4443,138.72,138.67,20.87]
[1719345747905,15.4443,138.72,138.66,0.34]
[1719345747906,6.3593,138.74,138.7,20.87]
[1719345748111,6.3593,138.74,138.71,0.34]
[1719345749498,6.3593,138.74,138.7,20.87]
[1719345749703,6.3593,138.74,138.69,0.17]
[1719345750591,1.43502399,138.73,138.69,0.17]
[1719345751090,1.43502399,138.73,138.68,0.34]
[1719345755413,15.6012,138.72,138.67,20.87]
[1719345756019,15.6012,138.72,138.67,19.37]
[1719345756721,15.6012,138.72,138.68,0.17]
[1719345756894,15.6012,138.72,138.68,0.34]
[1719345757520,15.6012,138.72,138.68,0.17]
[1719345757823,1.43502399,138.71,138.64,20.87]
[1719345758016,1.43502399,138.71,138.65,0.34]
[1719345763405,17.03622399,138.72,138.65,0.34]
[1719345763605,15.6012,138.72,138.65,0.34]
[1719345764007,6.3593,138.74,138.68,20.87]
[1719345764220,6.3593,138.74,138.69,20.34]
[1719345764522,6.3593,138.74,138.71,20.87]
[1719345764721,6.3593,138.74,138.73,6.99]
[1719345764906,6.3593,138.74,138.73,7.33]
[1719345765417,6.6043,138.78,138.73,35.29]
[1719345765626,6.6043,138.78,138.77,6.99]
[1719345766013,15.1462,138.79,138.77,6.99]
[1719345766214,15.1462,138.79,138.78,7.16]
[1719345766616,15.1462,138.79,138.78,0.17]
[1719345767024,15.1462,138.79,138.77,1.61854073]
[1719345768333,6.223,138.81,138.78,0.17]
[1719345768830,15.2278,138.82,138.78,0.17]
[1719345768831,6.4945,138.85,138.79,22.4032469]
[1719345769019,6.4945,138.85,138.82,20.95]
[1719345769218,15.2278,138.86,138.83,1.62282818]
[1719345769427,15.2278,138.86,138.84,0.17]
[1719345769602,15.2278,138.86,138.84,1.62261891]
[1719345769797,21.4627,138.89,138.85,0.17]
[1719345772929,1.43502399,138.88,138.85,0.17]
[1719345773227,1.43502399,138.88,138.84,1.62261892]
[1719345774222,1.43502399,138.88,138.84,0.17]
[1719345776210,1.43502399,138.88,138.83,0.17]
[1719345778024,1.43502399,138.88,138.83,1.62813075]
[1719345779045,1.43502399,138.88,138.82,20.95]
[1719345779252,8.63542399,138.88,138.75,21.12]
[1719345779534,1.43502399,138.88,138.77,20.95]
[1719345779741,8.63562399,138.88,138.78,20.0]
[1719345779942,1.43502399,138.88,138.78,20.0]
[1719345780442,8.63552399,138.88,138.79,0.34]
[1719345780607,1.43502399,138.88,138.79,0.34]